[Event "Late-Titled-Tuesday-Blitz-October-03-2023"]
[Site "Chess.com"]
[Date "2023.10.03"]
[Round "7"]
[White "Deeper44"]
[Black "akanga001"]
[Result "1-0"]
[WhiteElo "2537"]
[BlackElo "2026"]
[TimeControl "180+1"]
[EndTime "15:13:09 PDT"]
[Termination "Deeper44 won by resignation"]

1. d4 {[%clk 0:03:00]} 1... d5 {[%clk 0:02:53.1]} 2. c4 {[%clk 0:03:00.7]} 2...
e6 {[%clk 0:02:52.7]} 3. Nf3 {[%clk 0:03:01.3]} 3... Nf6 {[%clk 0:02:51.7]} 4.
g3 {[%clk 0:03:01.3]} 4... dxc4 {[%clk 0:02:51.1]} 5. Bg2 {[%clk 0:03:01.5]}
5... c5 {[%clk 0:02:51.4]} 6. O-O {[%clk 0:03:01.2]} 6... Nc6 {[%clk 0:02:51.5]}
7. Qa4 {[%clk 0:03:01]} 7... Bd7 {[%clk 0:02:48.8]} 8. Qxc4 {[%clk 0:03:00.4]}
8... b5 {[%clk 0:02:49]} 9. Qd3 {[%clk 0:03:00.3]} 9... c4 {[%clk 0:02:49]} 10.
Qd1 {[%clk 0:03:00.5]} 10... Be7 {[%clk 0:02:48]} 11. a4 {[%clk 0:02:58.6]}
11... a6 {[%clk 0:02:47]} 12. axb5 {[%clk 0:02:57.8]} 12... axb5 {[%clk
0:02:47.1]} 13. Rxa8 {[%clk 0:02:58.6]} 13... Qxa8 {[%clk 0:02:47]} 14. Ne5
{[%clk 0:02:59.5]} 14... O-O {[%clk 0:02:44.2]} 15. Bg5 {[%clk 0:02:52.1]} 15...
h6 {[%clk 0:02:40.3]} 16. Nxd7 {[%clk 0:02:50.2]} 16... hxg5 {[%clk 0:02:36.8]}
17. Nxf8 {[%clk 0:02:39.9]} 17... Bxf8 {[%clk 0:02:32]} 18. Nc3 {[%clk
0:02:37.2]} 18... b4 {[%clk 0:02:29.6]} 19. Ne4 {[%clk 0:02:25.2]} 19... Nd5
{[%clk 0:02:29.5]} 20. Nxg5 {[%clk 0:02:24.1]} 20... Qa7 {[%clk 0:02:26.3]} 21.
Qc2 {[%clk 0:02:20.2]} 21... g6 {[%clk 0:02:24.3]} 22. Qxc4 {[%clk 0:02:18.6]}
22... Nxd4 {[%clk 0:02:20]} 23. e3 {[%clk 0:02:14]} 23... Be7 {[%clk 0:02:07.3]}
24. exd4 {[%clk 0:02:09]} 24... Bxg5 {[%clk 0:02:06.8]} 25. Bxd5 {[%clk
0:02:09.2]} 25... exd5 {[%clk 0:02:06.3]} 26. Qxd5 {[%clk 0:02:10.1]} 26... Bf6
{[%clk 0:01:55.5]} 27. Rd1 {[%clk 0:02:09.4]} 27... Kg7 {[%clk 0:01:55.3]} 28.
Kg2 {[%clk 0:01:58.8]} 28... Qc7 {[%clk 0:01:54.5]} 29. Qc5 {[%clk 0:01:44.5]}
29... Qb7+ {[%clk 0:01:52.7]} 30. d5 {[%clk 0:01:43.1]} 30... Bxb2 {[%clk
0:01:52.2]} 31. Qc6 {[%clk 0:01:39.4]} 31... Qb8 {[%clk 0:01:44.2]} 32. d6
{[%clk 0:01:38.5]} 32... Bf6 {[%clk 0:01:44]} 33. d7 {[%clk 0:01:38.8]} 33... b3
{[%clk 0:01:44.1]} 34. Qc8 {[%clk 0:01:37.8]} 34... Qb5 {[%clk 0:01:33.3]} 35.
d8=Q {[%clk 0:01:36.5]} 35... Bxd8 {[%clk 0:01:31.2]} 36. Qxd8 {[%clk
0:01:35.8]} 36... b2 {[%clk 0:01:30.6]} 37. Qd4+ {[%clk 0:01:35.3]} 37... Kh7
{[%clk 0:01:29.6]} 38. Rb1 {[%clk 0:01:34.2]} 38... Qc6+ {[%clk 0:01:28.7]} 39.
Kg1 {[%clk 0:01:28.4]} 39... Qc1+ {[%clk 0:01:28.4]} 40. Qd1 {[%clk 0:01:27.9]}
40... Qc3 {[%clk 0:01:27.3]} 41. h3 {[%clk 0:01:24.1]} 41... g5 {[%clk
0:01:20.9]} 42. Qh5+ {[%clk 0:01:20.1]} 42... Kg8 {[%clk 0:01:17.6]} 43. Qxg5+
{[%clk 0:01:20.4]} 43... Kf8 {[%clk 0:01:17.2]} 44. Qh6+ {[%clk 0:01:11.9]}
44... Kg8 {[%clk 0:01:16.1]} 45. Qg5+ {[%clk 0:01:12.1]} 45... Kf8 {[%clk
0:01:15.8]} 46. Qd8+ {[%clk 0:01:11.2]} 46... Kg7 {[%clk 0:01:14.8]} 47. Qd1
{[%clk 0:01:10.6]} 47... Kf8 {[%clk 0:01:12.4]} 48. Kg2 {[%clk 0:01:08.7]} 48...
Qc6+ {[%clk 0:01:11.5]} 49. Qf3 {[%clk 0:01:07.5]} 49... Qc2 {[%clk 0:01:08.3]}
50. Qa3+ {[%clk 0:01:06.6]} 1-0

[Event "Late-Titled-Tuesday-Blitz-October-03-2023"]
[Site "Chess.com"]
[Date "2023.10.03"]
[Round "7"]
[White "maracayo"]
[Black "Let_it_be_1"]
[Result "0-1"]
[WhiteElo "2401"]
[BlackElo "2623"]
[TimeControl "180+1"]
[EndTime "15:13:11 PDT"]
[Termination "Let_it_be_1 won by resignation"]

1. e4 {[%clk 0:03:00.9]} 1... e6 {[%clk 0:02:57.7]} 2. Nf3 {[%clk 0:03:00.1]}
2... d5 {[%clk 0:02:57.8]} 3. d3 {[%clk 0:03:01]} 3... c5 {[%clk 0:02:54.1]} 4.
Nbd2 {[%clk 0:03:00.4]} 4... Nc6 {[%clk 0:02:53.4]} 5. Be2 {[%clk 0:03:00.6]}
5... Nf6 {[%clk 0:02:52]} 6. O-O {[%clk 0:03:01]} 6... Bd6 {[%clk 0:02:50.8]} 7.
c3 {[%clk 0:03:01.3]} 7... O-O {[%clk 0:02:49.3]} 8. Re1 {[%clk 0:03:01.6]} 8...
Qc7 {[%clk 0:02:47.5]} 9. Bf1 {[%clk 0:03:00.6]} 9... Rd8 {[%clk 0:02:46.1]} 10.
g3 {[%clk 0:02:55.6]} 10... b6 {[%clk 0:02:42.2]} 11. exd5 {[%clk 0:02:51.6]}
11... exd5 {[%clk 0:02:40.6]} 12. Bg2 {[%clk 0:02:47.6]} 12... Bg4 {[%clk
0:02:38.6]} 13. Nf1 {[%clk 0:02:42.4]} 13... d4 {[%clk 0:02:29.1]} 14. Bg5
{[%clk 0:02:40.9]} 14... Be7 {[%clk 0:02:24.7]} 15. h3 {[%clk 0:02:31.3]} 15...
Bh5 {[%clk 0:02:23.3]} 16. c4 {[%clk 0:02:26.9]} 16... h6 {[%clk 0:02:18.5]} 17.
Bf4 {[%clk 0:02:02.5]} 17... Bd6 {[%clk 0:02:18.2]} 18. Qd2 {[%clk 0:01:51.6]}
18... Bxf4 {[%clk 0:02:15.8]} 19. Qxf4 {[%clk 0:01:52.5]} 19... Qxf4 {[%clk
0:02:13.4]} 20. gxf4 {[%clk 0:01:53.4]} 20... Bg6 {[%clk 0:02:12.9]} 21. Ne5
{[%clk 0:01:51.9]} 21... Nxe5 {[%clk 0:02:05.3]} 22. fxe5 {[%clk 0:01:51.1]}
22... Nh5 {[%clk 0:02:05.3]} 23. Bxa8 {[%clk 0:01:47.5]} 23... Rxa8 {[%clk
0:02:06.1]} 24. e6 {[%clk 0:01:31.3]} 24... fxe6 {[%clk 0:01:59]} 25. Rxe6
{[%clk 0:01:32.2]} 25... Nf4 {[%clk 0:01:50.7]} 26. Re7 {[%clk 0:01:27]} 26...
Nxh3+ {[%clk 0:01:47.7]} 27. Kh2 {[%clk 0:01:17.8]} 27... Nxf2 {[%clk
0:01:47.3]} 28. Nd2 {[%clk 0:01:13.4]} 28... Bxd3 {[%clk 0:01:38.9]} 29. Rg1
{[%clk 0:01:04.2]} 29... g5 {[%clk 0:01:38.4]} 30. Kg3 {[%clk 0:00:48.2]} 30...
Rf8 {[%clk 0:01:27.8]} 31. Rxa7 {[%clk 0:00:35.4]} 31... h5 {[%clk 0:01:22.1]}
32. Ra3 {[%clk 0:00:23.5]} 32... h4+ {[%clk 0:01:03.7]} 33. Kh2 {[%clk
0:00:18.5]} 33... g4 {[%clk 0:01:02.5]} 34. Rxd3 {[%clk 0:00:15.9]} 34... Nxd3
{[%clk 0:01:00.4]} 35. Rxg4+ {[%clk 0:00:16.3]} 35... Kf7 {[%clk 0:00:58.8]} 36.
Rxh4 {[%clk 0:00:17.2]} 36... Nxb2 {[%clk 0:00:56.8]} 37. Rh6 {[%clk 0:00:17.1]}
37... Kg7 {[%clk 0:00:53.9]} 0-1

[Event "Late-Titled-Tuesday-Blitz-October-03-2023"]
[Site "Chess.com"]
[Date "2023.10.03"]
[Round "7"]
[White "Saraisitave"]
[Black "Alina_Gumerovna"]
[Result "1-0"]
[WhiteElo "2256"]
[BlackElo "2107"]
[TimeControl "180+1"]
[EndTime "15:13:12 PDT"]
[Termination "Saraisitave won on time"]

1. e4 {[%clk 0:02:52.7]} 1... e5 {[%clk 0:02:56.9]} 2. d4 {[%clk 0:02:51.1]}
2... exd4 {[%clk 0:02:54.7]} 3. Qxd4 {[%clk 0:02:51.6]} 3... Nc6 {[%clk
0:02:54.8]} 4. Qe3 {[%clk 0:02:52.1]} 4... Bb4+ {[%clk 0:02:53.5]} 5. Nc3 {[%clk
0:02:52.5]} 5... Nf6 {[%clk 0:02:41.1]} 6. Bd2 {[%clk 0:02:52.8]} 6... d6 {[%clk
0:02:39.3]} 7. O-O-O {[%clk 0:02:51.9]} 7... O-O {[%clk 0:02:33.6]} 8. Qg3
{[%clk 0:02:43.3]} 8... Be6 {[%clk 0:02:18]} 9. f3 {[%clk 0:02:40.9]} 9... a6
{[%clk 0:02:09.1]} 10. h4 {[%clk 0:02:39.2]} 10... Nh5 {[%clk 0:02:00.8]} 11.
Qh2 {[%clk 0:02:35.2]} 11... Ne5 {[%clk 0:01:25.4]} 12. g4 {[%clk 0:02:34.1]}
12... Nf6 {[%clk 0:01:25.5]} 13. h5 {[%clk 0:02:31.7]} 13... h6 {[%clk
0:01:24.5]} 14. g5 {[%clk 0:02:17.8]} 14... Nh7 {[%clk 0:01:10]} 15. gxh6 {[%clk
0:02:14.2]} 15... g6 {[%clk 0:01:10.1]} 16. hxg6 {[%clk 0:02:08.8]} 16... fxg6
{[%clk 0:01:09.8]} 17. Qg3 {[%clk 0:01:57.5]} 17... Qf6 {[%clk 0:01:03.5]} 18.
f4 {[%clk 0:01:53.3]} 18... Nc6 {[%clk 0:00:51.8]} 19. Bd3 {[%clk 0:01:40.9]}
19... Kh8 {[%clk 0:00:45.6]} 20. Nge2 {[%clk 0:01:36.1]} 20... a5 {[%clk
0:00:28.2]} 21. Rdg1 {[%clk 0:01:27.9]} 21... Bf7 {[%clk 0:00:21.4]} 22. a3
{[%clk 0:01:26.5]} 22... Bc5 {[%clk 0:00:20.2]} 23. Nd5 {[%clk 0:01:17.5]} 23...
Bxd5 {[%clk 0:00:19.7]} 24. exd5 {[%clk 0:01:17.4]} 24... Bxg1 {[%clk
0:00:17.7]} 25. Rxg1 {[%clk 0:01:16.6]} 25... Qf7 {[%clk 0:00:05.2]} 26. Bc3+
{[%clk 0:01:01.1]} 26... Kg8 {[%clk 0:00:03.6]} 27. Bxg6 {[%clk 0:00:52.9]}
27... Qxd5 {[%clk 0:00:01.4]} 28. Be4+ {[%clk 0:00:44.4]} 1-0

[Event "Late-Titled-Tuesday-Blitz-October-03-2023"]
[Site "Chess.com"]
[Date "2023.10.03"]
[Round "7"]
[White "rikchessmx"]
[Black "Likvidator228"]
[Result "1-0"]
[WhiteElo "2348"]
[BlackElo "2533"]
[TimeControl "180+1"]
[EndTime "15:13:15 PDT"]
[Termination "rikchessmx won by checkmate"]

1. e4 {[%clk 0:03:00.9]} 1... c5 {[%clk 0:02:57.4]} 2. Nf3 {[%clk 0:02:54]} 2...
g6 {[%clk 0:02:56.1]} 3. d4 {[%clk 0:02:54]} 3... cxd4 {[%clk 0:02:56]} 4. Qxd4
{[%clk 0:02:54.5]} 4... Nf6 {[%clk 0:02:56]} 5. e5 {[%clk 0:02:54.4]} 5... Nc6
{[%clk 0:02:56.4]} 6. Qc4 {[%clk 0:02:54.8]} 6... d5 {[%clk 0:02:51.6]} 7. exd6
{[%clk 0:02:54]} 7... Qxd6 {[%clk 0:02:51.4]} 8. Nc3 {[%clk 0:02:54.5]} 8... a6
{[%clk 0:02:47.7]} 9. Bf4 {[%clk 0:02:52.7]} 9... Qe6+ {[%clk 0:02:47.6]} 10.
Be2 {[%clk 0:02:51.5]} 10... Qxc4 {[%clk 0:02:46.2]} 11. Bxc4 {[%clk 0:02:50.9]}
11... Bg7 {[%clk 0:02:46.5]} 12. O-O-O {[%clk 0:02:49.2]} 12... Bg4 {[%clk
0:02:42.6]} 13. Be2 {[%clk 0:02:40.8]} 13... O-O {[%clk 0:02:41.6]} 14. h3
{[%clk 0:02:41.1]} 14... Be6 {[%clk 0:02:22.8]} 15. Ng5 {[%clk 0:02:39.5]} 15...
Bf5 {[%clk 0:02:20.6]} 16. g4 {[%clk 0:02:38.9]} 16... Bc8 {[%clk 0:02:21.3]}
17. Bf3 {[%clk 0:02:31.6]} 17... h6 {[%clk 0:02:15.5]} 18. Nge4 {[%clk
0:02:31.1]} 18... Nxe4 {[%clk 0:02:15.6]} 19. Bxe4 {[%clk 0:02:28.3]} 19... e5
{[%clk 0:02:15.7]} 20. Be3 {[%clk 0:02:23.8]} 20... f5 {[%clk 0:02:15.9]} 21.
Bd5+ {[%clk 0:02:23.1]} 21... Kh7 {[%clk 0:02:15]} 22. Rdg1 {[%clk 0:02:17.6]}
22... Ne7 {[%clk 0:02:06.8]} 23. Bb3 {[%clk 0:02:14.1]} 23... Nc6 {[%clk
0:01:35.9]} 24. Bc5 {[%clk 0:02:05.8]} 24... Rf6 {[%clk 0:01:29.3]} 25. Nd5
{[%clk 0:02:05.3]} 25... Bd7 {[%clk 0:01:02.9]} 26. Nxf6+ {[%clk 0:02:02]} 26...
Bxf6 {[%clk 0:01:03.8]} 27. Rd1 {[%clk 0:02:00]} 27... Be8 {[%clk 0:01:03]} 28.
gxf5 {[%clk 0:01:57.5]} 28... gxf5 {[%clk 0:01:03.2]} 29. Be6 {[%clk 0:01:53.5]}
29... Bg5+ {[%clk 0:01:02.6]} 30. Kb1 {[%clk 0:01:51.1]} 30... Kg6 {[%clk
0:01:02.9]} 31. h4 {[%clk 0:01:50.5]} 31... Bf4 {[%clk 0:01:03.2]} 32. h5+
{[%clk 0:01:36.8]} 32... Kf6 {[%clk 0:01:03.3]} 33. Bc4 {[%clk 0:01:29.1]} 33...
e4 {[%clk 0:00:56.8]} 34. Bb6 {[%clk 0:01:24.3]} 34... Rc8 {[%clk 0:00:40]} 35.
Bb3 {[%clk 0:01:19.7]} 35... Ne5 {[%clk 0:00:20.4]} 36. Rd6+ {[%clk 0:01:15.3]}
36... Kg7 {[%clk 0:00:19.1]} 37. Rg1+ {[%clk 0:01:13]} 37... Ng4 {[%clk
0:00:19.4]} 38. Bd4+ {[%clk 0:01:09.3]} 38... Kh7 {[%clk 0:00:17.2]} 39. Re6
{[%clk 0:01:03.6]} 39... Bxh5 {[%clk 0:00:16.1]} 40. Re7+ {[%clk 0:00:59.5]}
40... Kg6 {[%clk 0:00:14.7]} 41. Rg7# {[%clk 0:00:49.3]} 1-0

[Event "Late-Titled-Tuesday-Blitz-October-03-2023"]
[Site "Chess.com"]
[Date "2023.10.03"]
[Round "7"]
[White "dennisodessa"]
[Black "MajorCoast"]
[Result "1-0"]
[WhiteElo "2471"]
[BlackElo "2254"]
[TimeControl "180+1"]
[EndTime "15:13:20 PDT"]
[Termination "dennisodessa won by checkmate"]

1. d4 {[%clk 0:03:00]} 1... d5 {[%clk 0:02:58.8]} 2. c4 {[%clk 0:03:00.9]} 2...
e6 {[%clk 0:02:59]} 3. Nc3 {[%clk 0:03:00.8]} 3... h6 {[%clk 0:02:59.2]} 4. cxd5
{[%clk 0:03:01.4]} 4... exd5 {[%clk 0:03:00.1]} 5. Bf4 {[%clk 0:03:01.9]} 5...
Bd6 {[%clk 0:02:59.2]} 6. Nxd5 {[%clk 0:03:00.9]} 6... c6 {[%clk 0:02:30.9]} 7.
Bxd6 {[%clk 0:02:59.8]} 7... cxd5 {[%clk 0:02:25.9]} 8. Ba3 {[%clk 0:02:55.6]}
8... Nc6 {[%clk 0:02:23.5]} 9. e3 {[%clk 0:02:55.6]} 9... Bf5 {[%clk 0:02:16.3]}
10. Nf3 {[%clk 0:02:54.9]} 10... Nf6 {[%clk 0:02:13.2]} 11. Be2 {[%clk
0:02:53.4]} 11... Ne4 {[%clk 0:02:04.4]} 12. O-O {[%clk 0:02:52.8]} 12... g5
{[%clk 0:02:04.1]} 13. Qa4 {[%clk 0:02:45.5]} 13... g4 {[%clk 0:01:57.1]} 14.
Ne5 {[%clk 0:02:44.9]} 14... Bd7 {[%clk 0:01:48.5]} 15. Nxd7 {[%clk 0:02:39.6]}
15... Qxd7 {[%clk 0:01:48.9]} 16. Rac1 {[%clk 0:02:36.1]} 16... h5 {[%clk
0:01:41.1]} 17. Bb5 {[%clk 0:02:33.9]} 17... Rc8 {[%clk 0:01:36.4]} 18. Bd3
{[%clk 0:02:06.5]} 18... Nd2 {[%clk 0:01:08.4]} 19. Rfd1 {[%clk 0:01:50.6]}
19... Nf3+ {[%clk 0:01:08.4]} 20. gxf3 {[%clk 0:01:51.5]} 20... gxf3 {[%clk
0:01:09]} 21. Kh1 {[%clk 0:01:52.4]} 21... Rg8 {[%clk 0:01:05.8]} 22. Rg1 {[%clk
0:01:51.8]} 22... Rg2 {[%clk 0:00:56.9]} 23. Rxg2 {[%clk 0:01:41.1]} 23... fxg2+
{[%clk 0:00:57.8]} 24. Kg1 {[%clk 0:01:40.8]} 24... Qg4 {[%clk 0:00:26.5]} 25.
Qb5 {[%clk 0:01:35.5]} 25... Rc7 {[%clk 0:00:10.9]} 26. Qxd5 {[%clk 0:01:33.6]}
26... Rd7 {[%clk 0:00:09.5]} 27. Qe4+ {[%clk 0:01:31.8]} 27... Qxe4 {[%clk
0:00:08.8]} 28. Bxe4 {[%clk 0:01:32.7]} 28... Ne7 {[%clk 0:00:07.5]} 29. Kxg2
{[%clk 0:01:28.4]} 29... b5 {[%clk 0:00:07.5]} 30. Bxe7 {[%clk 0:01:25.8]} 30...
Kxe7 {[%clk 0:00:07]} 31. Rc5 {[%clk 0:01:23.9]} 31... a6 {[%clk 0:00:06.3]} 32.
Rxh5 {[%clk 0:01:23.5]} 32... Ke6 {[%clk 0:00:05.5]} 33. Rc5 {[%clk 0:01:24.4]}
33... Kd6 {[%clk 0:00:05.3]} 34. Rd5+ {[%clk 0:01:24.1]} 34... Kc7 {[%clk
0:00:06.2]} 35. Rxd7+ {[%clk 0:01:24.7]} 35... Kxd7 {[%clk 0:00:07]} 36. h4
{[%clk 0:01:25.3]} 36... a5 {[%clk 0:00:07.9]} 37. h5 {[%clk 0:01:25.5]} 37...
a4 {[%clk 0:00:08.8]} 38. h6 {[%clk 0:01:25.8]} 38... a3 {[%clk 0:00:09.7]} 39.
bxa3 {[%clk 0:01:25.8]} 39... b4 {[%clk 0:00:09.5]} 40. axb4 {[%clk 0:01:26.7]}
40... f5 {[%clk 0:00:10.4]} 41. Bxf5+ {[%clk 0:01:26.9]} 41... Kd6 {[%clk
0:00:11.3]} 42. h7 {[%clk 0:01:27.6]} 42... Kd5 {[%clk 0:00:12.1]} 43. Bd3
{[%clk 0:01:28.2]} 43... Kd6 {[%clk 0:00:12]} 44. h8=Q {[%clk 0:01:27.9]} 44...
Ke6 {[%clk 0:00:12.9]} 45. Qe5+ {[%clk 0:01:27.9]} 45... Kd7 {[%clk 0:00:12.8]}
46. Bb5+ {[%clk 0:01:27.6]} 46... Kc8 {[%clk 0:00:13.7]} 47. Qe7 {[%clk
0:01:26.6]} 47... Kb8 {[%clk 0:00:13.4]} 48. Bc6 {[%clk 0:01:27.1]} 48... Kc8
{[%clk 0:00:10.7]} 49. b5 {[%clk 0:01:28]} 49... Kb8 {[%clk 0:00:11]} 50. b6
{[%clk 0:01:28.9]} 50... Kc8 {[%clk 0:00:11.7]} 51. Qc7# {[%clk 0:01:28.8]} 1-0

[Event "Late-Titled-Tuesday-Blitz-October-03-2023"]
[Site "Chess.com"]
[Date "2023.10.03"]
[Round "7"]
[White "Sjakkerntobi"]
[Black "quvnoq_muxlis"]
[Result "1/2-1/2"]
[WhiteElo "2511"]
[BlackElo "2757"]
[TimeControl "180+1"]
[EndTime "15:13:27 PDT"]
[Termination "Game drawn by stalemate"]

1. f4 {[%clk 0:03:00.9]} 1... e5 {[%clk 0:02:59.5]} 2. fxe5 {[%clk 0:03:01.8]}
2... d6 {[%clk 0:03:00]} 3. Nf3 {[%clk 0:03:02.5]} 3... dxe5 {[%clk 0:02:59.1]}
4. e4 {[%clk 0:03:03.2]} 4... Nc6 {[%clk 0:02:58.5]} 5. Bc4 {[%clk 0:03:03.8]}
5... Nf6 {[%clk 0:02:54.4]} 6. Qe2 {[%clk 0:03:04.4]} 6... Bc5 {[%clk
0:02:53.7]} 7. Bxf7+ {[%clk 0:03:04.6]} 7... Kxf7 {[%clk 0:02:53.2]} 8. Qc4+
{[%clk 0:03:05.2]} 8... Ke8 {[%clk 0:02:51.3]} 9. Qxc5 {[%clk 0:03:05.4]} 9...
Nxe4 {[%clk 0:02:51.8]} 10. Qe3 {[%clk 0:03:05.6]} 10... Nf6 {[%clk 0:02:49.2]}
11. Nxe5 {[%clk 0:03:04.4]} 11... Nxe5 {[%clk 0:02:50.1]} 12. Qxe5+ {[%clk
0:03:04.8]} 12... Kf7 {[%clk 0:02:50.7]} 13. O-O {[%clk 0:03:03]} 13... Re8
{[%clk 0:02:51.3]} 14. Qg3 {[%clk 0:02:57.4]} 14... Kg8 {[%clk 0:02:50.5]} 15.
Nc3 {[%clk 0:02:57.3]} 15... Qd4+ {[%clk 0:01:56.7]} 16. Qf2 {[%clk 0:02:56.8]}
16... Qe5 {[%clk 0:01:48.5]} 17. d4 {[%clk 0:02:54]} 17... Qh5 {[%clk
0:01:48.4]} 18. Bf4 {[%clk 0:02:51.9]} 18... c6 {[%clk 0:01:48.9]} 19. Be5
{[%clk 0:02:49.2]} 19... Ng4 {[%clk 0:01:44.9]} 20. Qf3 {[%clk 0:02:40.3]} 20...
Qg6 {[%clk 0:01:35.9]} 21. Rae1 {[%clk 0:02:33.1]} 21... Be6 {[%clk 0:01:32.7]}
22. Qg3 {[%clk 0:02:23.7]} 22... Qxc2 {[%clk 0:01:21.8]} 23. h3 {[%clk 0:02:21]}
23... Nxe5 {[%clk 0:01:21.4]} 24. Rxe5 {[%clk 0:02:18.4]} 24... Bf7 {[%clk
0:00:46.2]} 25. Rg5 {[%clk 0:02:13.7]} 25... g6 {[%clk 0:00:38.8]} 26. Rf2
{[%clk 0:02:08.7]} 26... Qc1+ {[%clk 0:00:35.4]} 27. Kh2 {[%clk 0:02:09.1]}
27... Qe3 {[%clk 0:00:35.7]} 28. Re5 {[%clk 0:01:58.8]} 28... Qxg3+ {[%clk
0:00:34.5]} 29. Kxg3 {[%clk 0:01:59.7]} 29... Rxe5 {[%clk 0:00:34.9]} 30. dxe5
{[%clk 0:02:00.6]} 30... Rd8 {[%clk 0:00:33.2]} 31. Kf4 {[%clk 0:01:56.3]} 31...
Kf8 {[%clk 0:00:28.8]} 32. Ke4 {[%clk 0:01:54.4]} 32... Ke7 {[%clk 0:00:28.6]}
33. g4 {[%clk 0:01:54.2]} 33... Be6 {[%clk 0:00:24.7]} 34. Ke3 {[%clk
0:01:49.5]} 34... b6 {[%clk 0:00:22.1]} 35. Ne4 {[%clk 0:01:47.6]} 35... Rd5
{[%clk 0:00:22.6]} 36. Kf4 {[%clk 0:01:45.8]} 36... Rd4 {[%clk 0:00:22.8]} 37.
Ke3 {[%clk 0:01:44.6]} 37... Rd5 {[%clk 0:00:23.1]} 38. Kf4 {[%clk 0:01:41.8]}
38... h6 {[%clk 0:00:23.6]} 39. h4 {[%clk 0:01:38.1]} 39... Rd4 {[%clk
0:00:22.3]} 40. Ke3 {[%clk 0:01:38.2]} 40... Ra4 {[%clk 0:00:22.8]} 41. b3
{[%clk 0:01:37.5]} 41... Rb4 {[%clk 0:00:21.1]} 42. g5 {[%clk 0:01:31.5]} 42...
Bf5 {[%clk 0:00:18]} 43. Nd6 {[%clk 0:01:29.1]} 43... Rxh4 {[%clk 0:00:16.9]}
44. Rxf5 {[%clk 0:01:27.5]} 44... gxf5 {[%clk 0:00:17.8]} 45. Nxf5+ {[%clk
0:01:28.3]} 45... Ke6 {[%clk 0:00:17.4]} 46. Nxh4 {[%clk 0:01:29]} 46... hxg5
{[%clk 0:00:17.5]} 47. Ng6 {[%clk 0:01:22.1]} 47... Kf7 {[%clk 0:00:16.7]} 48.
Nh8+ {[%clk 0:01:19.8]} 48... Kg7 {[%clk 0:00:15]} 49. Ke4 {[%clk 0:01:20.2]}
49... Kxh8 {[%clk 0:00:15]} 50. Kf5 {[%clk 0:01:20.8]} 50... Kg7 {[%clk
0:00:15.7]} 51. Kxg5 {[%clk 0:01:21.4]} 51... Kf7 {[%clk 0:00:16.3]} 52. Kf5
{[%clk 0:01:22]} 52... Ke7 {[%clk 0:00:17.2]} 53. e6 {[%clk 0:01:21.1]} 53... c5
{[%clk 0:00:17.8]} 54. Ke5 {[%clk 0:01:21.6]} 54... b5 {[%clk 0:00:18.4]} 55.
Kd5 {[%clk 0:01:22.2]} 55... c4 {[%clk 0:00:19]} 56. bxc4 {[%clk 0:01:21.4]}
56... bxc4 {[%clk 0:00:19.9]} 57. Kxc4 {[%clk 0:01:22.3]} 57... Kxe6 {[%clk
0:00:20.6]} 58. Kb5 {[%clk 0:01:23.2]} 58... Kd7 {[%clk 0:00:21.3]} 59. Ka6
{[%clk 0:01:23.9]} 59... Kc8 {[%clk 0:00:21.8]} 60. Kxa7 {[%clk 0:01:24.7]}
60... Kc7 {[%clk 0:00:22.7]} 61. Ka6 {[%clk 0:01:25.4]} 61... Kb8 {[%clk
0:00:23]} 62. Kb6 {[%clk 0:01:26]} 62... Ka8 {[%clk 0:00:23.9]} 63. a4 {[%clk
0:01:26.8]} 63... Kb8 {[%clk 0:00:24.8]} 64. a5 {[%clk 0:01:27.7]} 64... Ka8
{[%clk 0:00:25.7]} 65. a6 {[%clk 0:01:28.6]} 65... Kb8 {[%clk 0:00:26.6]} 66.
a7+ {[%clk 0:01:29.5]} 66... Ka8 {[%clk 0:00:27.5]} 67. Ka6 {[%clk 0:01:30.4]}
1/2-1/2

[Event "Late-Titled-Tuesday-Blitz-October-03-2023"]
[Site "Chess.com"]
[Date "2023.10.03"]
[Round "7"]
[White "Lion_DL"]
[Black "Chempiblinka"]
[Result "1-0"]
[WhiteElo "2482"]
[BlackElo "2298"]
[TimeControl "180+1"]
[EndTime "15:13:27 PDT"]
[Termination "Lion_DL won by checkmate"]

1. e4 {[%clk 0:02:58.4]} 1... c6 {[%clk 0:03:00]} 2. d3 {[%clk 0:02:57.1]} 2...
d5 {[%clk 0:03:00.2]} 3. Nd2 {[%clk 0:02:57.6]} 3... g6 {[%clk 0:02:59]} 4. Ngf3
{[%clk 0:02:57.5]} 4... Bg7 {[%clk 0:02:59.5]} 5. g3 {[%clk 0:02:58.1]} 5... e5
{[%clk 0:02:56.7]} 6. Bg2 {[%clk 0:02:58.6]} 6... Ne7 {[%clk 0:02:57.1]} 7. O-O
{[%clk 0:02:59.2]} 7... O-O {[%clk 0:02:57.4]} 8. h3 {[%clk 0:02:59.1]} 8... d4
{[%clk 0:02:54.2]} 9. Nc4 {[%clk 0:02:56.5]} 9... b5 {[%clk 0:02:50.8]} 10.
Ncxe5 {[%clk 0:02:53.3]} 10... Be6 {[%clk 0:02:48]} 11. Ng4 {[%clk 0:02:48.5]}
11... h5 {[%clk 0:02:45.5]} 12. Ngh2 {[%clk 0:02:44.8]} 12... Qd7 {[%clk
0:02:41.6]} 13. Ng5 {[%clk 0:02:45.2]} 13... Na6 {[%clk 0:02:26.2]} 14. f4
{[%clk 0:02:42.4]} 14... Qc8 {[%clk 0:01:56.6]} 15. Nxe6 {[%clk 0:02:40.5]}
15... fxe6 {[%clk 0:01:51.9]} 16. Nf3 {[%clk 0:02:38.5]} 16... Rb8 {[%clk
0:01:49.8]} 17. Bd2 {[%clk 0:02:33.7]} 17... c5 {[%clk 0:01:50]} 18. Qe2 {[%clk
0:02:29.6]} 18... c4 {[%clk 0:01:44.7]} 19. Kh2 {[%clk 0:02:25.3]} 19... cxd3
{[%clk 0:01:39.8]} 20. cxd3 {[%clk 0:02:22.7]} 20... Qc2 {[%clk 0:01:38.8]} 21.
Rab1 {[%clk 0:02:19.1]} 21... Nc5 {[%clk 0:01:35.1]} 22. Ne1 {[%clk 0:02:05]}
22... Qxb1 {[%clk 0:01:35.2]} 23. Bb4 {[%clk 0:02:02.7]} 23... Rbc8 {[%clk
0:01:27.5]} 24. a3 {[%clk 0:01:58]} 24... Rfe8 {[%clk 0:01:24]} 25. g4 {[%clk
0:01:51.4]} 25... hxg4 {[%clk 0:01:05.8]} 26. hxg4 {[%clk 0:01:52.3]} 26... Nb3
{[%clk 0:01:05.5]} 27. g5 {[%clk 0:01:41.1]} 27... Qc1 {[%clk 0:00:54.1]} 28.
Bh3 {[%clk 0:01:39.1]} 28... Rc6 {[%clk 0:00:48.4]} 29. Ng2 {[%clk 0:01:32.7]}
29... Qc2 {[%clk 0:00:41.6]} 30. Bxe6+ {[%clk 0:01:31.1]} 30... Kf8 {[%clk
0:00:32.9]} 31. Qg4 {[%clk 0:01:25.8]} 31... Qxd3 {[%clk 0:00:29.6]} 32. Re1
{[%clk 0:00:58.9]} 32... Rc2 {[%clk 0:00:28.8]} 33. Kg1 {[%clk 0:00:41.8]} 33...
a5 {[%clk 0:00:28.8]} 34. Bd6 {[%clk 0:00:40.2]} 34... Nd2 {[%clk 0:00:25.6]}
35. Nh4 {[%clk 0:00:35]} 35... Nxe4 {[%clk 0:00:22.2]} 36. Nxg6# {[%clk
0:00:33.6]} 1-0